bitfinex-derivatives/quotes_ETHF0:USTF0_20250909
["timestamp","ask_amount","ask_price","bid_price","bid_amount"]
[1757404081881,0.3041,4352.3,4351.7,0.3192]
[1757404082382,0.4267,4351.8,4351.7,0.7301]
[1757404082684,0.7308,4351.8,4351.7,0.7301]
[1757404083680,0.4267,4351.5,4351.4,0.3192]
[1757404083880,0.3041,4351.4,4351.1,0.3192]
[1757404084089,0.3041,4351.4,4351.1,0.5221]
[1757404084090,0.7308,4351.2,4351.1,0.5221]
[1757404084285,0.7308,4351.2,4351.1,0.92558242]
[1757404084484,0.7308,4351.2,4351.1,1.13358242]
[1757404084688,0.7308,4351.2,4351.1,0.9701]
[1757404086683,0.1208,4352.5,4351.3,0.7301]
[1757404086684,3.2078,4351.9,4351.3,0.7301]
[1757404086883,0.2112,4351.6,4351.5,0.5288]
[1757404087075,3.2078,4351.9,4351.6,0.3192]
[1757404087281,3.419,4351.9,4351.8,0.7301]
[1757404087684,3.2078,4351.9,4351.8,0.7301]
[1757404087882,3.9386,4351.9,4351.8,0.3192]
[1757404088088,0.7308,4351.8,4351.7,0.24]
[1757404088386,0.7308,4351.8,4351.7,0.7621]
[1757404088786,0.7308,4351.8,4351.7,0.9701]
[1757404088993,0.4267,4351.8,4351.7,0.9701]
[1757404089691,0.7308,4351.8,4351.7,0.9701]
[1757404090990,0.4267,4351.8,4351.7,0.9701]
[1757404091489,0.2112,4351.8,4351.7,0.9701]
[1757404091690,3.2078,4351.9,4351.8,0.3192]
[1757404091891,3.2078,4351.9,4351.8,0.7301]
[1757404093887,3.6345,4352.6,4352.5,0.848]
[1757404094087,3.6345,4352.6,4352.5,1.087]
[1757404095087,3.2078,4352.6,4352.5,1.087]
[1757404096087,3.6345,4352.6,4352.5,1.087]
[1757404097093,3.9561,4352.6,4352.5,0.9691]
[1757404098796,3.9561,4352.6,4352.5,1.0864]
[1757404099594,3.419,4352.6,4352.5,1.0864]
[1757404099995,3.2078,4352.6,4352.5,1.0864]
[1757404100501,3.4152,4353.1,4353.0,0.2086]
[1757404100694,3.9393,4353.1,4353.0,4.94433663]
[1757404100991,3.6177,4353.1,4353.0,4.94433663]
[1757404101296,3.2078,4354.1,4353.6,0.321]
[1757404101495,0.4099,4354.0,4353.9,0.7341]
[1757404101687,3.2078,4354.7,4354.5,0.1173]
[1757404101894,3.2078,4354.7,4354.6,0.56]
[1757404102390,3.2078,4354.7,4354.6,4.82703663]
[1757404104197,3.2078,4354.7,4354.6,4.62253663]
[1757404104498,3.2078,4354.7,4354.6,0.7686]
[1757404105094,3.2078,4354.7,4354.6,0.56]
[1757404106508,3.2078,4354.7,4354.6,0.7686]
[1757404107203,3.2078,4355.3,4354.6,0.7686]
[1757404108009,0.22962,4355.2,4354.6,0.7686]
[1757404108396,3.2078,4355.3,4354.6,0.7686]
[1757404108901,3.43742,4355.3,4354.7,0.2086]
[1757404109103,3.43742,4355.3,4354.7,0.321]
[1757404109312,3.43742,4355.3,4354.7,0.2086]
[1757404109493,3.43742,4355.3,4354.9,0.321]
[1757404109699,3.2078,4355.3,4355.2,0.321]
[1757404113998,3.2078,4355.3,4355.2,0.5296]
[1757404115207,3.2078,4355.3,4355.2,0.321]
[1757404115601,7.43741,4355.3,4354.7,0.238]
[1757404115798,3.2078,4354.8,4354.7,0.238]
[1757404116204,3.2078,4354.8,4354.7,0.559]
[1757404117898,3.2078,4354.8,4354.7,0.238]
[1757404118301,3.2078,4354.8,4354.7,0.559]
[1757404118905,3.2078,4354.8,4354.7,0.7676]
[1757404119506,3.2078,4354.8,4354.7,0.559]
[1757404120210,3.2078,4354.8,4354.7,0.7676]
[1757404123919,3.2078,4354.8,4354.7,0.559]
[1757404124116,3.2078,4354.8,4354.7,0.238]
[1757404126613,3.2078,4354.8,4354.7,0.5588]
[1757404127013,3.2078,4354.8,4354.7,0.7749]
[1757404127911,3.2078,4354.8,4354.7,0.5588]
[1757404128309,3.2078,4354.8,4354.7,0.7749]
[1757404129516,8.43807926,4354.8,4353.7,0.5369]
[1757404129724,3.2078,4354.0,4353.8,0.2161]
[1757404130022,3.2078,4354.0,4353.9,0.3208]
[1757404131121,3.2078,4354.0,4353.9,0.5369]
[1757404134121,3.2078,4354.0,4353.9,0.3208]
[1757404134520,3.2078,4354.0,4353.7,0.3208]
[1757404134724,3.2078,4354.0,4353.5,0.4381]
[1757404135216,3.2078,4354.0,4353.6,0.3208]
[1757404135822,3.2078,4354.0,4353.6,1.3302657]
[1757404136126,3.2078,4354.0,4353.9,0.737]
[1757404140321,3.2078,4354.0,4353.9,0.975]
[1757404141116,3.2078,4354.6,4354.0,0.3387]
[1757404141323,3.2078,4354.6,4354.1,0.5369]
[1757404141525,3.2078,4354.6,4354.5,0.4434]
[1757404143526,3.2078,4354.6,4354.5,0.6595]
[1757404144036,3.2078,4354.6,4354.5,0.3208]
[1757404144422,3.2078,4354.6,4354.5,0.4434]
[1757404145020,3.2078,4354.6,4354.5,0.6595]
[1757404145431,3.2078,4354.6,4354.5,0.8596]
[1757404145733,1.30884569,4356.0,4355.0,0.6595]
[1757404145734,3.2078,4355.1,4355.0,0.6595]
[1757404145932,3.2078,4355.1,4355.0,1.9897657]
[1757404146824,3.2078,4355.1,4355.0,2.1898657]
[1757404147526,3.2078,4355.1,4355.0,0.8596]
[1757404147729,3.2078,4355.6,4355.5,0.1226]
[1757404147925,3.2078,4355.6,4355.5,1.9897657]
[1757404148428,3.2078,4355.6,4355.5,2.1898657]
[1757404149827,3.2078,4355.6,4355.3,0.238]
[1757404150020,3.2078,4355.6,4355.3,0.5588]
[1757404150424,3.2078,4355.6,4355.3,0.238]
[1757404150826,3.2078,4355.6,4355.3,0.5588]
[1757404151929,3.2078,4355.6,4355.5,1.8690657]
[1757404152133,3.2078,4355.6,4355.5,2.1898657]
[1757404152633,3.2078,4355.6,4355.5,0.4434]
[1757404156837,3.2078,4355.6,4355.5,1.9897657]
[1757404157530,3.2078,4355.6,4355.5,2.1923657]
[1757404158432,3.2078,4355.6,4355.5,0.6595]
[1757404159238,3.2078,4355.6,4355.3,1.5682657]
[1757404159541,3.2078,4355.6,4355.3,0.238]
[1757404160139,3.2078,4355.6,4355.4,0.3226]
[1757404160333,3.2078,4355.6,4355.5,0.125]
[1757404160638,3.2078,4355.6,4355.3,0.238]
[1757404161641,3.2078,4355.6,4355.3,0.5606]
[1757404162437,3.2078,4355.6,4355.4,0.3226]
[1757404162743,3.2078,4355.6,4355.5,0.125]
[1757404163044,3.40650344,4355.6,4355.5,0.125]
[1757404163231,3.40650344,4355.6,4355.5,0.4476]
[1757404164045,3.40650344,4355.6,4355.3,0.238]
[1757404164245,0.19870344,4355.5,4355.4,0.3226]
[1757404164544,0.19870344,4355.5,4355.4,0.5316]
[1757404168050,0.19870344,4355.5,4355.4,0.7342]
[1757404170049,3.2078,4355.6,4355.5,0.8592]
[1757404170243,3.40675068,4355.6,4355.5,0.8592]
[1757404170547,3.40675068,4355.6,4355.5,1.98168862]
[1757404170947,3.2078,4356.6,4356.5,0.125]
[1757404171144,3.96929772,4356.6,4356.5,1.77908862]
[1757404172046,3.96929772,4356.6,4356.5,1.98168862]
[1757404172846,3.96929772,4356.6,4356.5,0.6566]
[1757404173148,8.43683772,4356.6,4355.6,0.3226]
[1757404173340,3.2078,4356.1,4355.5,0.6566]
[1757404173542,3.2078,4356.1,4355.6,0.209]
[1757404173844,3.2078,4356.1,4355.5,0.125]
[1757404174039,3.2078,4356.1,4355.6,0.3226]
[1757404174240,3.2078,4356.1,4355.5,0.334]
[1757404174444,3.2078,4356.1,4355.6,0.209]
[1757404174644,0.19452856,4356.0,4355.7,1.12248862]
[1757404174841,3.2078,4356.1,4355.6,0.5316]
[1757404175035,0.19460095,4356.0,4355.6,0.3226]
[1757404175348,0.19460095,4355.9,4355.5,0.125]
[1757404175549,0.19460095,4355.8,4355.6,0.3226]
[1757404175850,0.19460095,4355.7,4355.6,0.5316]
[1757404178038,0.19460095,4355.7,4355.6,0.7342]
[1757404180250,0.19460095,4355.7,4355.4,0.4466]
[1757404180450,3.2078,4355.5,4355.4,0.4466]
[1757404180647,3.40240095,4355.5,4355.4,0.4466]
[1757404184552,3.2078,4355.5,4355.4,0.8582]
[1757404185844,3.2078,4356.1,4356.0,0.8592]
[1757404186048,3.40226329,4356.1,4356.0,0.8592]
[1757404187053,3.40227326,4356.1,4356.0,0.8592]
[1757404189448,3.2078,4356.1,4356.0,0.8592]
[1757404190463,3.2078,4356.1,4356.0,1.0972]
[1757404191165,3.2078,4356.6,4356.5,0.1179]
[1757404191467,3.40222807,4356.6,4356.5,0.8509]
[1757404191658,3.2078,4356.6,4356.5,0.8509]
[1757404194166,3.2078,4356.6,4356.5,1.0889]
[1757404197064,3.2078,4357.2,4356.5,1.0889]
[1757404197265,0.19439528,4357.1,4357.0,1.97338862]
[1757404197462,0.19439528,4357.1,4357.0,2.21138862]
[1757404198764,0.19439528,4357.1,4357.0,0.238]
[1757404199067,0.19439528,4357.1,4356.7,0.3223]
[1757404199268,0.19439528,4357.0,4356.6,0.238]
[1757404199469,3.2078,4357.2,4356.7,0.3223]
[1757404199768,0.19431077,4357.1,4356.6,0.4327]
[1757404199972,0.19431077,4357.0,4356.7,0.3223]
[1757404200265,1.87871431,4356.9,4356.0,0.4473]
[1757404200471,3.2078,4356.1,4356.0,0.4473]
[1757404203171,3.2078,4356.1,4356.0,0.642]
[1757404203665,3.2078,4356.1,4356.0,0.4473]
[1757404204070,3.2078,4356.1,4356.0,0.858]
[1757404205769,3.2078,4356.1,4356.0,1.98048862]
[1757404207573,3.2078,4356.1,4356.0,0.1179]
[1757404207769,3.2078,4356.1,4356.0,0.3126]
[1757404208076,3.2078,4356.1,4356.0,0.8509]
[1757404209974,3.2078,4356.6,4356.0,0.8509]
[1757404210170,3.2078,4356.6,4356.5,0.8509]
[1757404210377,3.40241936,4356.6,4356.5,0.8509]
[1757404210878,3.2078,4356.6,4356.5,0.8509]
[1757404213370,3.2078,4357.3,4357.2,0.4107]
[1757404213572,3.2078,4357.3,4357.2,0.733]
[1757404213573,3.40248797,4357.3,4357.2,0.733]
[1757404216174,3.40248797,4357.3,4357.2,0.517]
[1757404219775,0.238,4357.6,4357.2,0.7253]
[1757404219973,0.19470155,4357.5,4357.4,0.5073]
[1757404220173,0.19470155,4357.5,4357.4,0.7156]
[1757404220383,3.2078,4357.8,4357.7,0.7156]
[1757404220681,3.40248556,4357.8,4357.7,0.3016]
[1757404221181,3.40248556,4357.8,4357.7,0.5073]
[1757404221484,3.40248556,4357.8,4357.7,0.7156]
[1757404222084,3.2078,4357.8,4357.7,0.7156]
[1757404223180,3.2078,4357.8,4357.7,0.3016]
[1757404223381,3.2078,4357.8,4357.7,0.7156]
[1757404224985,3.2078,4357.8,4357.7,0.5073]
[1757404225184,3.2078,4357.8,4357.7,0.3016]
[1757404225583,3.2078,4357.8,4357.7,0.7156]
[1757404226290,3.2078,4358.3,4358.2,0.2057]
[1757404226482,3.2078,4358.3,4358.2,1.62978862]
[1757404227592,7.63151087,4358.3,4357.1,0.3016]
[1757404227785,3.2078,4357.3,4356.9,0.237]
[1757404227981,3.2078,4357.3,4356.6,1.42408862]
[1757404228180,3.2078,4356.7,4356.6,1.86678862]
[1757404228692,3.2078,4356.7,4356.1,0.3016]
[1757404228889,3.2078,4356.2,4355.9,0.237]
[1757404229283,3.2078,4356.2,4356.0,0.3016]
[1757404229787,3.2078,4356.2,4356.1,0.3016]
[1757404232284,3.2078,4356.2,4356.1,0.7156]
[1757404234087,3.2078,4356.2,4356.1,4.7156]
[1757404234288,14.371,4359.2,4356.6,0.3016]
[1757404234289,3.2078,4356.7,4356.6,0.3016]
[1757404234592,3.2078,4356.7,4356.6,0.5386]
[1757404235089,3.2078,4356.7,4356.6,0.237]
[1757404235489,3.2078,4356.7,4356.6,0.7443]
[1757404235683,3.2078,4356.7,4356.6,0.9526]
[1757404242601,3.2078,4356.7,4356.6,0.5386]
[1757404243502,3.2078,4356.7,4356.6,0.7443]
[1757404244595,3.2078,4356.7,4356.6,0.9526]
[1757404248899,3.2078,4356.7,4356.6,0.7443]
[1757404249803,3.2078,4356.7,4356.6,0.9579]
[1757404250100,3.2078,4356.7,4356.6,0.5386]
[1757404250497,3.2078,4356.7,4356.6,0.9535]
[1757404253400,3.2078,4357.5,4357.4,0.2013]
[1757404253604,3.40334858,4357.5,4357.4,0.7118]
[1757404254000,3.40334858,4357.5,4357.4,0.4982]
[1757404256603,3.40334858,4357.5,4357.4,0.2969]
[1757404257208,3.96531472,4357.5,4357.4,0.2969]
[1757404257408,3.40334858,4357.5,4357.4,0.2969]
[1757404257910,3.40334858,4357.5,4357.4,0.4982]
[1757404258706,3.40334858,4357.5,4357.4,0.7118]
[1757404259308,3.2078,4357.5,4357.4,0.7118]
[1757404260809,3.2078,4358.0,4357.5,0.1256]
[1757404261110,3.2078,4358.0,4357.9,2.04090735]
[1757404261311,3.40356341,4358.0,4357.9,2.27790735]
[1757404261822,3.40356341,4358.0,4357.7,1.32910735]
[1757404262111,0.19576341,4357.9,4357.7,0.237]
[1757404262312,3.2078,4358.0,4357.8,0.2969]
[1757404262616,0.19571827,4357.9,4357.8,0.7118]
[1757404264110,3.2078,4358.0,4357.8,0.7118]
[1757404264414,3.2078,4358.0,4357.9,0.2969]
[1757404264615,3.40339978,4358.0,4357.9,0.2969]
[1757404265409,3.40339978,4358.0,4357.9,0.4982]
[1757404266112,3.40339978,4358.0,4357.9,0.7118]
[1757404266417,3.2078,4358.0,4357.9,0.7118]
[1757404269910,0.237,4358.7,4357.9,0.7118]
[1757404269911,3.2078,4358.6,4357.9,0.7118]
[1757404270112,3.2078,4358.6,4358.5,0.6238]
[1757404270313,3.40315126,4358.6,4358.5,0.6238]
[1757404270818,3.40315126,4358.6,4358.5,0.4225]
[1757404271513,3.40315126,4358.6,4358.3,1.56610735]
[1757404271514,3.40315126,4358.6,4358.3,1.86300735]
[1757404271719,0.19532661,4358.5,4358.3,0.5339]
[1757404271920,3.2078,4358.6,4358.3,0.5339]
[1757404272116,0.1953365,4358.5,4358.4,0.2969]
[1757404272716,0.1953365,4358.5,4358.4,0.7118]
[1757404272914,3.2078,4358.6,4358.5,0.2969]
[1757404273120,3.2078,4358.6,4358.5,0.4225]
[1757404276116,3.2078,4358.6,4358.5,0.6238]
[1757404276613,3.2078,4358.6,4358.5,0.8374]
[1757404277221,0.17,4358.9,4358.5,4.5405]
[1757404277519,0.17,4358.9,4358.8,2.03390735]
[1757404279219,0.17,4358.9,4358.8,5.24170735]
[1757404280222,0.17,4358.9,4358.8,9.47112735]
[1757404280420,0.17,4358.9,4358.8,9.47870735]
[1757404280617,0.17,4358.9,4358.8,4.1496]
[1757404280920,0.17,4358.9,4358.8,5.47870735]
[1757404282722,3.4158,4359.8,4359.7,0.4047]
[1757404282927,3.4158,4359.8,4359.7,2.27090735]
[1757404283822,3.6295,4359.8,4359.7,2.27090735]
[1757404285517,3.4158,4359.8,4359.7,2.27090735]
[1757404285918,3.2078,4359.8,4359.7,2.27090735]
[1757404286425,3.6295,4359.8,4359.7,0.9418]
[1757404286618,3.6295,4359.8,4359.7,0.7048]
[1757404286818,3.792,4359.8,4359.7,0.3001]
[1757404287018,3.792,4359.8,4359.7,0.5371]
[1757404287225,3.6295,4359.8,4359.7,0.9418]
[1757404288918,3.792,4359.8,4359.7,0.7384]
[1757404289321,3.792,4359.8,4359.0,0.1276]
[1757404289322,0.5842,4359.2,4359.1,0.3001]
[1757404289527,3.792,4359.2,4359.1,0.5371]
[1757404290419,3.792,4359.2,4359.1,1.85914062]
[1757404291727,3.2078,4359.2,4359.1,2.06254062]
[1757404291921,0.1625,4359.9,4359.5,0.8324]
[1757404291922,0.208,4359.6,4359.5,0.8324]
[1757404292227,0.5842,4359.2,4359.1,0.5371]
[1757404292428,0.5842,4359.2,4359.1,1.65784062]
[1757404293123,0.1625,4359.1,4358.8,1.12074062]
[1757404293323,0.5842,4359.0,4358.9,0.237]
[1757404293529,0.5842,4359.0,4358.9,0.5371]
[1757404294729,0.5842,4359.0,4358.9,0.7384]
[1757404296731,0.5842,4359.0,4358.9,0.5371]
[1757404297126,0.5842,4359.0,4358.9,0.7384]
[1757404297628,0.4217,4359.0,4358.9,0.7384]
[1757404297821,0.4217,4359.0,4358.9,0.9418]
[1757404299918,3.2078,4359.2,4358.9,0.6417]
[1757404300118,3.4158,4359.2,4359.1,1.52544062]
[1757404300322,3.4158,4359.2,4359.1,1.82554062]
[1757404302132,3.6295,4359.2,4359.1,1.82554062]
[1757404303228,3.2078,4359.2,4359.1,1.82554062]
[1757404305933,0.208,4359.6,4359.5,0.8324]
[1757404306126,0.40393711,4359.6,4359.5,2.19014062]
[1757404309128,0.61673711,4359.6,4359.5,1.24834062]
[1757404309333,0.61673711,4359.6,4359.5,2.22504062]
[1757404310336,0.40393711,4359.6,4359.5,2.22504062]
[1757404312738,0.19593711,4359.6,4359.5,2.22504062]
[1757404314237,3.2078,4359.7,4359.5,2.22504062]
[1757404314433,3.2078,4359.7,4359.6,0.7397]
[1757404317842,3.2078,4359.7,4359.6,0.77108833]
[1757404318442,0.2064,4360.1,4360.0,0.8657]
[1757404318739,3.2078,4360.2,4360.1,0.7397]
[1757404318935,3.40407769,4360.2,4360.1,0.7397]
[1757404319134,3.2078,4360.2,4360.1,0.7397]
[1757404319934,3.2078,4360.2,4360.1,0.77108833]
[1757404320327,3.627,4360.2,4360.1,0.56238833]
[1757404320531,3.4142,4360.2,4360.1,0.77108833]
[1757404320734,3.2078,4360.2,4360.1,0.77108833]
[1757404321435,3.627,4360.2,4360.1,0.77108833]
[1757404322636,3.2078,4360.2,4360.1,0.77108833]
[1757404322940,3.4142,4360.2,4360.1,0.77108833]
[1757404323635,3.2078,4360.2,4360.1,0.77108833]
[1757404323941,3.4142,4360.2,4360.1,0.77108833]
[1757404324640,3.2078,4360.2,4360.1,0.77108833]
[1757404325836,0.1625,4360.7,4360.1,0.77108833]
[1757404325837,0.4192,4360.6,4360.5,0.657]
[1757404326136,0.61520043,4360.6,4360.5,2.01374062]
[1757404326336,0.77770043,4360.6,4360.5,2.01374062]
[1757404326642,0.61520043,4360.6,4360.5,2.01374062]
[1757404326841,0.61520043,4360.6,4360.5,2.25382895]
[1757404331042,0.77770043,4360.6,4360.5,0.92438833]
[1757404332343,0.77770043,4360.6,4360.5,0.58508833]
[1757404334246,0.77770043,4360.6,4360.5,0.71108833]
[1757404334448,0.77770043,4360.6,4360.5,0.92438833]
[1757404335248,0.61520043,4360.6,4360.5,2.04512895]
[1757404335449,0.61520043,4360.6,4360.5,2.25382895]
[1757404335648,0.61520043,4360.6,4360.5,2.28524227]
[1757404338544,0.40240043,4360.6,4360.5,2.28524227]
[1757404338745,0.19600043,4360.6,4360.5,2.28524227]
[1757404340945,0.39930043,4360.6,4360.5,2.28524227]
[1757404341349,0.19600043,4360.6,4360.5,2.28524227]
[1757404344560,0.60220043,4360.6,4360.5,2.28524227]
[1757404344951,0.39930043,4360.6,4360.5,2.28524227]
[1757404345757,0.39930043,4360.6,4360.5,2.31665559]
[1757404346258,0.96358471,4360.6,4360.5,2.31665559]
[1757404346556,1.16648471,4360.6,4360.5,2.31665559]
[1757404347458,1.16648471,4360.6,4360.5,1.19591497]
[1757404347755,1.32888471,4360.6,4360.5,1.19591497]
[1757404348754,1.16648471,4360.6,4360.5,1.19591497]
[1757404351957,0.60220043,4360.6,4360.5,1.19591497]
[1757404352357,0.76460043,4360.6,4360.5,0.53791497]
[1757404352562,0.76460043,4360.6,4359.5,0.1276]
[1757404352563,0.4062,4359.9,4359.8,0.3058]
[1757404352760,3.97240043,4359.9,4359.8,0.3058]
[1757404353661,3.97240043,4359.9,4359.8,0.33721332]
[1757404353864,4.5368706,4359.9,4359.8,0.33721332]
[1757404354257,4.5368706,4359.9,4359.8,0.54231332]
[1757404354656,3.97240043,4359.9,4359.8,0.54231332]
[1757404354864,4.5361984,4359.9,4359.8,0.33721332]
[1757404355059,8.7655684,4359.9,4359.8,0.03141332]
[1757404355758,8.5361984,4359.9,4359.8,0.03141332]
[1757404356769,0.5371,4359.6,4359.5,0.236]
[1757404357059,0.1309,4359.5,4359.2,0.3058]
[1757404357251,0.236,4359.7,4359.2,0.3058]
[1757404357252,3.7449,4359.3,4359.2,0.3058]
[1757404357457,4.5046984,4359.3,4359.2,0.3058]
[1757404357762,4.5046984,4359.3,4359.2,0.5109]
[1757404358365,4.3737984,4359.3,4359.0,0.4334]
[1757404358666,0.5371,4359.1,4359.0,0.3058]
[1757404358871,1.2968984,4359.1,4359.0,0.3058]
[1757404359164,1.2968984,4359.1,4359.0,0.6365]
[1757404359366,1.2968984,4359.1,4359.0,0.8509]
[1757404359367,0.60220043,4359.1,4359.0,0.8509]
[1757404362264,0.73310043,4359.1,4359.0,0.4314]
[1757404362953,0.5373,4358.6,4358.5,0.3058]
[1757404363261,0.5373,4358.6,4358.0,0.1256]
[1757404363262,0.5373,4358.3,4358.2,0.3058]
[1757404364056,0.5373,4358.3,4358.2,0.5109]
[1757404364662,0.4062,4358.3,4358.2,0.5109]
[1757404366869,0.4062,4358.3,4358.2,0.7253]
[1757404367568,3.614,4358.3,4358.2,0.7253]
[1757404368769,3.7452,4358.3,4358.2,0.5109]
[1757404369172,3.7452,4358.3,4358.2,0.3058]
[1757404370567,3.7452,4358.3,4358.2,0.5217]
[1757404372062,3.7452,4358.3,4358.0,0.4458]
[1757404372273,0.53,4358.1,4358.0,0.3202]
[1757404372472,0.53,4358.1,4358.0,0.4381]
[1757404372673,0.53,4358.1,4358.0,0.3202]
[1757404373466,0.53,4358.1,4358.0,0.4381]
[1757404373667,0.53,4358.1,4358.0,0.654]
[1757404374176,0.3988,4358.1,4358.0,0.654]
[1757404375969,0.3988,4358.1,4358.0,0.8656]
[1757404382299,0.59494499,4358.1,4358.0,0.8656]
[1757404383891,0.39184499,4358.1,4358.0,0.8656]
[1757404384188,0.19614499,4358.1,4358.0,0.8656]
[1757404385593,0.95476145,4358.1,4358.0,0.8656]
[1757404387897,1.15786145,4358.1,4358.0,0.8656]
[1757404388784,1.28906145,4358.1,4358.0,0.654]
[1757404390298,1.15786145,4358.1,4358.0,0.8656]
[1757404391788,0.75906145,4358.1,4358.0,2.42817637]
[1757404391997,3.2078,4358.3,4358.1,0.3202]
[1757404392198,3.2078,4358.3,4358.2,0.7477]
[1757404392598,3.2078,4358.3,4358.2,0.97715]
[1757404392798,3.2078,4358.3,4358.2,0.7477]
[1757404399910,3.7079,4358.3,4358.2,0.7477]
[1757404400599,3.2078,4358.3,4358.2,0.7477]
[1757404401104,3.5122,4358.3,4358.2,0.7477]
[1757404401899,3.7159,4358.3,4358.2,0.7477]
[1757404406508,3.7159,4358.3,4358.2,0.9827]
[1757404406703,3.2078,4358.3,4358.2,0.9827]
[1757404407698,3.5122,4358.3,4358.2,0.9827]
[1757404408102,0.3044,4358.7,4358.2,0.6625]
[1757404408405,0.3044,4358.7,4358.6,2.04587637]
[1757404408406,0.5081,4358.7,4358.6,2.04587637]
[1757404408605,3.5122,4358.8,4358.7,0.2932]
[1757404408808,3.5122,4358.8,4358.7,0.7193]
[1757404409611,3.7159,4358.8,4358.7,0.7193]
[1757404412505,3.7159,4358.8,4358.7,1.84003537]
[1757404412506,3.926,4358.8,4358.7,1.84003537]
[1757404413804,0.3044,4359.2,4358.8,0.2932]
[1757404414009,0.7182,4359.2,4359.1,1.84003537]
[1757404421513,3.2078,4359.3,4359.2,0.2932]
[1757404421514,3.5122,4359.3,4359.2,0.2932]
[1757404421716,3.5122,4359.3,4359.2,0.9543]
[1757404421914,3.7159,4359.3,4359.2,0.9543]
[1757404422611,0.0818,4360.0,4359.5,0.1244]
[1757404422612,0.3044,4359.6,4359.5,0.1244]
[1757404422815,0.5081,4359.9,4359.8,0.7193]
[1757404423114,0.5081,4359.9,4359.8,2.07503537]
[1757404424418,0.7182,4359.9,4359.8,1.35573537]
[1757404425720,0.7182,4359.9,4359.8,1.57173537]
[1757404426220,0.7182,4359.9,4359.8,1.86493537]
[1757404426910,0.7182,4359.9,4359.8,2.07503537]
[1757404430623,0.5081,4359.9,4359.8,2.07503537]
[1757404430821,0.3044,4359.9,4359.8,2.07503537]
[1757404431022,0.5199,4359.9,4359.8,2.07503537]
[1757404432619,0.7197,4359.9,4359.8,1.55373537]
[1757404432822,0.7197,4359.9,4359.8,2.06903537]
[1757404436120,0.7197,4359.9,4359.8,0.9483]
[1757404436326,0.7197,4359.9,4359.8,0.433]
[1757404438420,0.7197,4359.9,4359.8,0.235]
[1757404440927,0.7197,4359.9,4359.4,1.42323537]
[1757404441127,0.7121,4359.6,4359.5,0.5005]
[1757404441423,0.1205,4360.0,4359.5,0.8321]
[1757404441630,0.336,4360.0,4359.9,1.83403537]
[1757404442027,0.6328,4360.0,4359.9,1.83403537]
[1757404442424,0.8326,4360.0,4359.9,1.83403537]
[1757404445030,0.8326,4360.0,4359.9,1.53153537]
[1757404446428,0.8326,4360.0,4359.9,1.83403537]
[1757404449630,0.7121,4360.0,4359.9,1.83403537]
[1757404452931,0.8326,4360.0,4359.9,0.198]
[1757404453135,0.7121,4359.5,4359.4,0.9483]
[1757404453327,0.8326,4359.5,4359.4,0.6458]
[1757404453628,0.7121,4359.5,4359.4,0.9483]
[1757404453934,0.2968,4359.5,4359.4,0.9483]
[1757404454122,3.5046,4359.6,4359.5,0.3025]
[1757404454325,3.5046,4359.6,4359.5,1.83403537]
[1757404454525,3.7201,4359.6,4359.5,1.83403537]
[1757404457337,3.9199,4359.6,4359.5,1.82733537]
[1757404461740,0.1281,4359.5,4359.4,0.235]
[1757404461933,0.8274,4359.5,4359.4,0.7427]
[1757404462239,0.8274,4359.5,4359.4,0.9416]
[1757404464940,0.8274,4359.5,4359.4,0.6454]
[1757404465140,0.8274,4359.5,4359.4,0.4465]
[1757404465838,0.8274,4359.5,4359.4,0.7427]
[1757404466541,0.8274,4359.5,4359.4,0.235]
[1757404467941,0.8274,4359.5,4359.4,0.4465]
[1757404468940,0.8274,4359.5,4359.4,0.235]
[1757404469643,0.8274,4359.5,4359.4,0.4465]
[1757404470243,0.8274,4359.5,4359.4,0.7427]
[1757404470546,0.6993,4359.3,4359.2,0.7066]
[1757404474344,3.2078,4359.6,4359.2,2.03333401]
[1757404474546,3.2078,4359.6,4359.5,0.8301]
[1757404475542,3.6992,4359.6,4359.5,0.8301]
[1757404475740,3.9071,4359.6,4359.5,0.7066]
[1757404480348,0.6993,4359.6,4359.5,0.7066]
[1757404483348,0.4914,4359.6,4359.5,0.7066]
[1757404484645,0.2919,4359.9,4359.5,0.5339]
[1757404484850,0.6993,4359.9,4359.8,0.7066]
[1757404488649,0.4914,4359.9,4359.8,0.9406]
[1757404488947,0.309,4360.1,4359.8,0.6444]
[1757404489149,3.9228,4360.2,4360.1,0.7111]
[1757404492449,3.9228,4360.2,4360.1,0.2062]
[1757404492855,0.1172,4360.0,4359.8,1.234]
[1757404493049,0.715,4359.9,4359.8,1.234]
[1757404500656,0.715,4359.9,4359.8,1.735]
[1757404500859,0.715,4359.9,4359.8,1.9451]
[1757404501957,0.715,4359.9,4359.8,1.4402]
[1757404502154,0.715,4359.9,4359.8,1.234]
[1757404504258,0.715,4359.9,4359.8,1.0]
[1757404504453,5.50638827,4359.9,4359.1,0.234]
[1757404504657,0.406,4358.9,4358.8,0.4402]
[1757404504855,0.715,4358.9,4358.8,0.735]
[1757404505063,0.715,4358.9,4358.8,0.9451]
[1757404505865,0.406,4358.9,4358.8,0.9451]
[1757404507765,0.2105,4359.1,4359.0,0.8357]
[1757404509160,3.2078,4359.2,4359.0,0.5409]
[1757404509366,3.2078,4359.2,4359.1,2.03783401]
[1757404510661,3.2078,4359.2,4359.1,0.7111]
[1757404510662,3.4183,4359.2,4359.1,0.7111]
[1757404515364,3.9228,4359.2,4359.1,0.501]
[1757404516972,3.9228,4359.2,4358.9,0.3093]
[1757404517664,3.9228,4359.2,4358.8,0.234]
[1757404517973,3.9228,4359.2,4358.9,0.3093]
[1757404520270,3.9228,4359.2,4358.8,0.234]